Cogmind - Beta 15 @@@ ROGUE MODE // 2025.06.13 @ 15:21:42 Player: Chair Result: Self-destructed Performance ------------- Evolutions (1) 500 Regions Visited (2) 400 Robots Destroyed (4) 20 Value Destroyed (40) 40 Prototype IDs (0) 0 Alien Tech Used (0) 0 Bonus (200) 200 TOTAL SCORE: 1160 Bonus ------- Pacifist 200 Cogmind --------- Core Integrity 308/400 Matter 293/300 Energy 63/100 System Corruption 0% Temperature Cool (3) Movement Flying (40) Location -9/Materials Parts ------- > --- POWER (1) -------- (None) > --- PROPULSION (3) --- Flight Unit > --- UTILITY (3) ------ Improved Targeting Computer > --- WEAPON (2) ------- Medium Laser > --- INVENTORY (5) ---- Improved Hover Unit Peak State ------------ > --- POWER ------------ (None) > --- PROPULSION ------- Improved Hover Unit Improved Hover Unit > --- UTILITY ---------- Improved Targeting Computer > --- WEAPON ----------- Medium Laser > --- INVENTORY -------- (None) [Rating: 7] Favorites ----------- Power None Propulsion Flight Unit Hover Unit Improved Hover Unit Flight Unit Flight Unit Utility Improved Targeting Computer Processor Improved Targeting Computer Weapon Medium Laser Energy Gun Medium Laser Build | -11 -10 -9 ------- Run | Yrd Mat Mat Slots Evolved 2 | . . 2 Power . | . . . Propulsion 1 | . . 1 Utility 1 | . . 1 Weapon . | . . . Parts Attached 7 | 1 . 6 Power . | . . . Engine . | . . . Core . | . . . Reactor . | . . . Propulsion 4 | . . 4 Treads . | . . . Leg . | . . . Wheel . | . . . Hover 2 | . . 2 Flight 2 | . . 2 Utility 1 | . . 1 Device . | . . . Storage . | . . . Processor 1 | . . 1 Hackware . | . . . Protection . | . . . Artifact . | . . . Weapon 2 | 1 . 1 Energy Gun 2 | 1 . 1 Energy Cannon . | . . . Ballistic Gun . | . . . Ballistic Cannon . | . . . Launcher . | . . . Special Weapon . | . . . Impact Weapon . | . . . Slashing Weapon . | . . . Piercing Weapon . | . . . Special Melee Weapon . | . . . Unidentified Prototypes . | . . . Parts Lost 3 | . 1 2 Power . | . . . Propulsion 2 | . . 2 Utility . | . . . Weapon 1 | . 1 . Highest Loss Streak 1 | . 1 1 To Critical Strikes . | . . . Average Backups . | . 1 . Power . | . . . Propulsion . | . . . Utility . | . . . Weapon . | . 1 . Tool/Special . | . . . Unused Backups . | . . . Power . | . . . Propulsion . | . . . Utility . | . . . Weapon . | . . . Tool/Special . | . . . Average Slot Usage (%) 24 | . 10 30 Hover 3 | . . 4 Flight 5 | . . 8 Processor 5 | . . 8 Energy Gun 9 | . 10 8 Peak Build Rating 7 | 1 1 7 Average Rating 3 | . . 4 On Entrance . | . 1 . Naked Turns 19 | . 11 8 Heaviest Build 2 | 2 2 2 Greatest Support 8 | 3 3 8 Greatest Overweight (x) . | . . . Average Overweight (x) . | . . . Largest Inventory Capacity 5 | 5 5 5 Average Capacity 5 | 5 5 5 Most Carried 1 | 1 1 1 Average Carried . | . 1 . Final Capacity 5 | 5 5 5 Final Carried 1 | 1 1 1 Class Distribution -------------------- 100% | Mutant Dominant Class ---------------- Mutant | -10/Materials Mutant | -9/Materials Resources | -11 -10 -9 ----------- Run | Yrd Mat Mat Matter Collected 251 | 208 . 43 Remotely . | . . . Salvage Created 56 | . . 56 Parts 3 | . . 3 Haulers Intercepted . | . . . Recyclers Shooed . | . . . Parts Field Recycled . | . . . Retrieved Matter . | . . . Parts Self-Destructed . | . . . Prevented . | . . . Kills | -11 -10 -9 ------- Run | Yrd Mat Mat Combat Hostiles Destroyed 4 | . . 4 Guns 4 | . . 4 Classes Destroyed 1 | . . 1 Swarmer 4 | . . 4 Best Kill Streak 4 | . . 4 Combat Bots Only 4 | . . 4 Max Kills in Single Turn 1 | . . 1 Gunslinging . | . . . Exploded . | . . . Melee . | . . . Uniques/NPCs Destroyed . | . . . Combat | -11 -10 -9 -------- Run | Yrd Mat Mat Hostile Shots Fired 65 | . 20 45 Missed 29 | . 7 22 Hits 36 | . 13 23 Projectile 36 | . 13 23 Critical Strikes 2 | . . 2 Damage Taken 361 | . 154 207 Core 171 | . 79 92 Absorbed by Shields . | . . . Core Remaining (%) 84 | 100 68 . Volleys Fired 10 | . . 10 Largest 1 | . . 1 Hottest 50 | . . 50 Shots Fired 10 | . . 10 Gun 10 | . . 10 Cannon . | . . . Launcher . | . . . Special . | . . . Kinetic . | . . . Thermal 10 | . . 10 Explosive . | . . . Electromagnetic . | . . . Robot Hit Streak 10 | . . 10 Robot Miss Streak . | . . . Penetration Max . | . . . Secondary Targets . | . . . Shots Hit Robots 10 | . . 10 Core Hits 4 | . . 4 Critical Kills . | . . . Critical Parts Destroyed . | . . . Critical Strikes . | . . . Melee Attacks . | . . . Impact . | . . . Slashing . | . . . Piercing . | . . . Sneak Attacks . | . . . Combat Hostiles . | . . . Follow-up Attacks . | . . . Damage Inflicted 126 | . . 126 Guns 126 | . . 126 Cannons . | . . . Explosions . | . . . Melee . | . . . Ramming . | . . . Kinetic . | . . . Thermal 126 | . . 126 Explosive . | . . . Electromagnetic . | . . . Impact . | . . . Slashing . | . . . Piercing . | . . . Highest Corruption . | . . . Average Corruption . | . . . Corruption Purged . | . . . Corruption Blocked . | . . . Overload Shots . | . . . Overflow Damage . | . . . Projectiles . | . . . Explosions . | . . . Melee . | . . . Knockbacks . | . . . Impact . | . . . Kinetic . | . . . Secondary . | . . . Self-Inflicted Damage . | . . . Shots . | . . . Rammed . | . . . Targets Rammed . | . . . Kicked . | . . . Crushed . | . . . Highest Temperature 9 | . . 9 Average Temperature 6 | . . 6 Received Heat Transfer 150 | . 90 60 Siege Activations . | . . . Martial Activations . | . . . Shielding Activations . | . . . Robots Disrupted . | . . . Combat Hostiles . | . . . Robots Corrupted . | . . . Combat Hostiles . | . . . Parts Fried . | . . . Impact Corruptions . | . . . Robots Melted . | . . . Combat Hostiles . | . . . Parts Melted . | . . . Heat Transferred 370 | . . 370 Parts Sabotaged . | . . . Parts Stolen . | . . . Parts Stripped . | . . . Power Chain Reactions . | . . . Alert | -11 -10 -9 ------- Run | Yrd Mat Mat Maximum Alert Level . | . . . Low Security (%) 100 | 100 100 100 Level 1 . | . . . Level 2 . | . . . Level 3 . | . . . Level 4 . | . . . Level 5 . | . . . High Security . | . . . Max Security . | . . . Peak Influence 78 | . 7 78 Initial . | . . . Average 33 | . 1 51 Influence Increases 135 | . 7 128 Destroy 0b10 Robot/C 80 | . . 80 Destroy Leader 10 | . . 10 Successful Hack 15 | . 7 8 Lose Combat Pursuer 30 | . . 30 Influence Decreases 67 | . 7 60 Time Decay 47 | . 7 40 Lost Part 20 | . . 20 Squads Dispatched 2 | . . 2 Investigation . | . . . Extermination . | . . . Reinforcement 2 | . . 2 Assault . | . . . Garrison . | . . . Intercept . | . . . Searches Triggered . | . . . Construction Impeded . | . . . Haulers Reinforced . | . . . Active Scanning Responses . | . . . Cargo Convoy Interrupts . | . . . Stealth | -11 -10 -9 --------- Run | Yrd Mat Mat Distress Signals 1 | . . 1 Communications Jammed . | . . . Distress Signals . | . . . Times Spotted 25 | . 4 21 Peak Tracking Total 16 | . 4 16 Tactical Retreats 1 | . . 1 Traps | -11 -10 -9 ------- Run | Yrd Mat Mat Traps Triggered . | . . . Indirectly . | . . . Trap Hack Attempts . | . . . Triggered . | . . . Disarmed . | . . . Reprogrammed . | . . . Reused . | . . . Traps Extracted . | . . . Installed . | . . . Triggered . | . . . Machines | -11 -10 -9 ---------- Run | Yrd Mat Mat Machines Disabled . | . . . Max in Single Turn . | . . . Machines Repaired . | . . . Machines Dismantled . | . . . Machines Sabotaged . | . . . Overloaded Fab Kills . | . . . Hacking | -11 -10 -9 --------- Run | Yrd Mat Mat Machines Accessed 4 | . 2 2 Terminals 4 | . 2 2 Fabricators . | . . . Repair Stations . | . . . Recycling Units . | . . . Scanalyzers . | . . . Garrison Access . | . . . Total Hacks 13 | . 7 6 Successful 2 | . 1 1 Failed 11 | . 6 5 Catastrophic 3 | . 2 1 Database Lockouts . | . . . Manual 11 | . 5 6 Terminals 13 | . 7 6 Fabricators . | . . . Repair Stations . | . . . Recycling Units . | . . . Scanalyzers . | . . . Garrison Access . | . . . Terminal Hacks 2 | . 1 1 Branch Access Points 2 | . 1 1 Fabricator Hacks . | . . . Repair Station Hacks . | . . . Recycling Unit Hacks . | . . . Scanalyzer . | . . . Garrison Access Hacks . | . . . Unauthorized Hacks . | . . . Terminals . | . . . Fabricators . | . . . Repair Stations . | . . . Recycling Units . | . . . Scanalyzers . | . . . Garrison Access . | . . . Data Cores Recovered . | . . . Used . | . . . Hacking Detections 4 | . 2 2 Full Trace Events 2 | . 2 . Feedback Events . | . . . Feedback Blocked . | . . . Robot Schematics Acquired . | . . . Robots Built . | . . . Authchips . | . . . Time . | . . . Total Robot Build Rating . | . . . Part Schematics Acquired . | . . . Parts Built . | . . . Authchips . | . . . Time . | . . . Total Part Build Rating . | . . . Parts Repaired . | . . . Time . | . . . Parts Recycled . | . . . Recycled Matter . | . . . Retrieved Matter . | . . . Retrieved Components . | . . . Parts Scanalyzed . | . . . Part Schematics Acquired . | . . . Parts Damaged . | . . . Bothacking | -11 -10 -9 ------------ Run | Yrd Mat Mat Used RIF Installer . | . . . Robots Hacked . | . . . Non-combat . | . . . Combat . | . . . Robot Hacks Applied . | . . . Relay Couplers Released . | . . . Fabnet Peak Effective % . | . . . Robots Rewired . | . . . Allies Hacked . | . . . Hacks Repelled . | . . . Allies | -11 -10 -9 -------- Run | Yrd Mat Mat Total Allies . | . . . Largest Group . | . . . Highest-Rated Group . | . . . Highest-Rated Ally . | . . . Total Orders . | . . . Ally Attacks . | . . . Total Damage . | . . . Kills . | . . . Allies Corrupted . | . . . Allies Melted . | . . . Intel | -11 -10 -9 ------- Run | Yrd Mat Mat Active Infowar (turns) . | . . . Robot Analysis Total . | . . . Derelict Logs Recovered . | . . . Drone Launches . | . . . Drone Recoveries . | . . . Exploration | -11 -10 -9 ------------- Run | Yrd Mat Mat Turns Passed 126 | 14 32 80 Spaces Moved 206 | 22 64 120 Core 102 | 22 64 16 Treads . | . . . Legs . | . . . Wheels . | . . . Hover 7 | . . 7 Flight 97 | . . 97 Fastest Speed 37 | 50 50 37 Average Speed 44 | 50 50 40 Slowest Speed 60 | 50 50 60 Overloaded Moves . | . . . Propulsion Burnouts . | . . . Robots Hopped 20 | . . 20 Potential Cave-ins . | . . . Cave-ins Triggered . | . . . Exploration Rate (%) 15 | 3 29 14 Regions Visited 2 Branch Regions . Pre-discovered Areas . | . . . Known Exits Taken . | . . . Unknown Exits Taken 2 | 1 1 . Scrap Searched . | . . . Spaces Dug . | . . . Terrain Destroyed . | . . . Melee . | . . . Projectile . | . . . AOE . | . . . Terrain Rammed . | . . . Walls Destroyed . | . . . Machines Disabled . | . . . Actions | -11 -10 -9 --------- Run | Yrd Mat Mat Total 205 | 23 63 119 Wait 2 | . . 2 Move 176 | 21 63 92 Hop 8 | . . 8 Pick Up 1 | 1 . . Fast Attach 6 | 1 . 5 Attach 1 | . . 1 Detach 1 | . . 1 Swap . | . . . Drop . | . . . Fire 10 | . . 10 Melee . | . . . Ram . | . . . Kick . | . . . Crush . | . . . Escape Stasis . | . . . Rewire . | . . . Trap . | . . . Miscellaneous . | . . . Route ------- -11/Scrapyard -10/Materials (discovered 2 exits: *Mat / Min) -9/Materials (discovered 2 exits: Min / Sto) History --------- Turn | Location | Event 8 | -11/Scrapyard | Discovered new exit (range 15) 15 | -11/Scrapyard | Entered Materials 27 | -10/Materials | Identified exit to Mines 41 | -10/Materials | Discovered new exit (range 13) 47 | -10/Materials | Entered another Materials area 47 | -9/Materials | Evolved 2 slots: Propulsion x1, Utility x1 51 | -9/Materials | Identified exit to Mines 51 | -9/Materials | Identified exit to Storage 127 | -9/Materials | Self-destructed Last Messages --------------- 00051_ T-07 Excavator is excavating. 00055_ Acquired Imp. Hover Unit. 00055_ T-07 Excavator is excavating. 00057_ Acquired Imp. Targeting Computer. 00060_ Acquired Imp. Hover Unit. 00061_ S-10 Pest destroyed. 00072_ Imp. Hover Unit destroyed. 00079_ S-10 Pest heat spikes uncontrollably. 00079_ S-10 Pest destroyed. 00083_ Acquired 14 matter. 00084_ Acquired 13 matter. 00087_ Acquired Flight Unit. 00091_ Acquired 16 matter. 00091_ Connecting with Terminal... 00109_ Critical hit (Burn: +37). 00110_ O-16 Technician sends out distress signal. 00113_ ALERT: Hostiles spotted, dispatching reinforcements to Terminal M006. 00124_ Flight Unit destroyed. 00126_ Critical hit (Burn: +37). Map ----- +----------------------------------------------------+ | | | | | | | | | | | | | | | | | | | | | | | | | ????????????????????????????????? | | ????????????????????????????????? | | ????????????????????????????????? | | ????###############?????????????? | | ????? #! ??????????????? | | ????? T # #??########???? | | ?????? #[ """#??# #???? | | ?????? # Y"#??# #???? | | ??????? ?# """???# #???? | | ??????? ?? ????# """ #???? | | ????#+##+#####/####### """ #???? | | ????# + """ #???? | | ??###### ####################???? | | # #@#??????????????""" #???? | | # """ + #?########?????""" #???? | | # """ #Y#?# T ???????"" #???? | | # """ #b#?# ??????? #???? | | ? ?#g#?? """ ????????? #???? | | ######?# #?? """ ????????? #???? | | ?????###g###?"""???########+#???? | | ?????# #? ???# + #???? | | ?????# ###+##### # #???? | | ?????# + """ # #???? | | ?????# ### ##### Y" # ##### | | ?????# #?# #???# """ # | | ?????###+###?# #???# # | | ??????? ???# #???######## | | ???????"""???# #??????????#+###+# | | ??????"""""??# ?????????????? | | ??????"""""??# #??????????????" | | ?????"""""""?# #?????????????"" | | ??????"""""??? ??????????????"" | | ?????????????? ?????????????""" | | ?????????????? ??????????????"" | | ?????????????? ??????????????? | | ?????????????? ??????????????? | | ?????????????? ???????????????### | | ?????????????? ?????????????????? | +----------------------------------------------------+ Best States ------------- Heat Dissipation 28 Energy Generation 5 Energy Capacity 100 Matter Stores 300 Matter Capacity 300 Sight Range 16 Terrain Scan Density 10 Evasion (%) 62 Targeting Accuracy 6 Item Schematics ----------------- None Robot Schematics ------------------ None Fabricated ------------ Nothing Repaired ---------- Nothing Alien Tech Used ----------------- None Achievements -------------- None Challenges ------------ None Game ------ Seed PowerSniperShielding Manual? 0 Play Time 00:05:57 Cumulative 246.0 hours Start 2025.06.13 @ 15:00:43 End 2025.06.13 @ 15:21:42 Sessions 1 Manual Loads 0 Difficulty Rogue Special Mode None Game No. 176 Rogue 176 Adventurer 0 Explorer 0 Win Type - Total 14 Types 14/0/0/0/0/0/0/0/0/0 Lore% 72 Gallery% 70 Achievement% 64 Wizard Run 0 Options --------- Layout 0 ASCII 0 Keyboard 1 Movement Numpad Keybinds 0 Fullscreen 2 Font 36/Smallcaps Map View 76x50 Zoom Use 0% Tactical HUD 1 Map Filters NONE Filters NONE Steam 1 RUN: a3c2cd7c-dce4-4969-aea2-359fee4e1d5b